bitfinex/quotes_ETHUSD_20250328
["timestamp","ask_amount","ask_price","bid_price","bid_amount"]
[1743141199809,0.1155174,1923.3,1923.2,8.90870852]
[1743141200009,0.1155174,1923.3,1923.2,24.81955037]
[1743141200241,0.1155174,1923.3,1923.2,24.76756462]
[1743141200443,0.1155174,1923.3,1923.2,22.20250185]
[1743141201644,0.1155174,1923.3,1923.2,17.00284185]
[1743141201645,0.30735559,1923.3,1923.2,17.00284185]
[1743141201945,0.30735559,1923.3,1923.2,15.91084185]
[1743141202548,0.30735559,1923.3,1923.2,1.41084185]
[1743141202712,0.30735559,1923.3,1923.2,0.05198739]
[1743141203027,0.30735559,1923.3,1923.2,5.25164744]
[1743141203541,0.30735559,1923.3,1923.2,0.05198744]
[1743141203742,0.30735559,1923.3,1923.0,6.27024]
[1743141203943,7.76493277,1923.2,1923.0,1.0701]
[1743141204125,5.19995,1923.1,1922.8,0.39279312]
[1743141204327,0.19375129,1923.0,1922.6,5.20124]
[1743141204504,0.19375129,1923.0,1922.7,0.520124]
[1743141204703,5.39399129,1923.0,1922.7,0.520124]
[1743141204904,5.39409129,1923.0,1922.5,15.02188474]
[1743141205225,5.39409129,1923.0,1922.6,0.0520019]
[1743141205423,0.19375129,1923.0,1922.7,5.20085]
[1743141205626,5.20009,1923.1,1922.7,14.5]
[1743141206006,5.39398129,1923.0,1922.7,14.5]
[1743141206200,0.19375129,1923.0,1922.7,21.15101]
[1743141206404,0.19375129,1923.0,1922.8,0.05200109]
[1743141206633,5.20005,1923.1,1922.8,0.05200109]
[1743141206837,5.39398129,1923.0,1922.7,15.95]
[1743141207041,0.19375129,1923.0,1922.8,0.05200192]
[1743141207839,0.19375129,1922.9,1922.8,0.05200192]
[1743141208044,0.1155174,1923.3,1922.8,7.75753731]
[1743141208209,0.19375129,1923.2,1922.9,11.49312]
[1743141208546,0.19375129,1923.2,1923.0,5.19997]
[1743141208718,0.19375129,1923.2,1923.0,10.40005]
[1743141208925,0.19375129,1923.2,1922.9,1.0925]
[1743141209109,0.19375129,1923.2,1922.9,7.65435172]
[1743141209618,0.19375129,1923.2,1923.0,5.2521839]
[1743141211538,0.19375129,1923.2,1923.1,5.19993]
[1743141211909,0.19375129,1923.2,1923.1,0.05199008]
[1743141212109,0.1155174,1923.3,1923.1,5.25188008]
[1743141212439,0.1155174,1923.3,1923.1,6.24508301]
[1743141212440,0.17070283,1923.2,1923.1,6.24508301]
[1743141212614,0.1155174,1923.3,1923.1,6.24508301]
[1743141212820,0.17070283,1923.2,1923.1,6.29707321]
[1743141213044,0.1155174,1923.3,1923.1,6.29707321]
[1743141213242,0.17070283,1923.2,1923.1,6.29707321]
[1743141213439,0.1155174,1923.3,1923.1,6.29707322]
[1743141213641,0.17070283,1923.2,1923.1,6.29707322]
[1743141213816,0.1155174,1923.3,1923.1,36.29807322]
[1743141214017,0.1155174,1923.3,1923.2,8.82946732]
[1743141214409,0.1155174,1923.3,1923.2,9.94596732]
[1743141215111,0.1155174,1923.3,1923.2,16.97188532]
[1743141216017,0.1155174,1923.3,1923.2,19.56023532]
[1743141216549,0.1155174,1923.3,1923.2,9.94596732]
[1743141216750,0.1155174,1923.3,1923.1,40.40051]
[1743141216913,0.1155174,1923.3,1923.2,5.25164847]
[1743141217513,0.1155174,1923.3,1923.1,35.2007]
[1743141217951,0.1155174,1923.3,1923.2,5.25164862]
[1743141218116,0.1155174,1923.3,1923.1,30.001]
[1743141218619,0.1155174,1923.3,1923.1,44.501]
[1743141218821,0.1155174,1923.3,1923.1,49.54526341]
[1743141219850,5.20028,1923.0,1922.5,36.29861]
[1743141220054,5.20028,1923.0,1922.6,0.05200449]
[1743141220210,5.19997,1923.1,1922.6,5.25317449]
[1743141220412,0.17096914,1923.0,1922.6,5.25317449]
[1743141220733,5.37130914,1923.0,1922.7,0.52531745]
[1743141221154,5.37130914,1923.0,1922.7,0.57732185]
[1743141221326,5.37130914,1923.0,1922.7,0.52531745]
[1743141221947,5.37130914,1923.0,1922.7,0.57732185]
[1743141222150,0.17096914,1923.0,1922.7,0.57732185]
[1743141222314,0.17096914,1923.0,1922.7,5.77820185]
[1743141222518,0.17096914,1923.0,1922.8,0.57782019]
[1743141223551,9.0414,1923.2,1922.8,0.57782019]
[1743141223735,0.17096914,1923.1,1922.9,14.5]
[1743141223926,5.37101914,1923.1,1922.9,14.5]
[1743141225220,0.17096914,1923.1,1922.9,14.5]
[1743141226153,0.17096914,1923.1,1922.8,5.20061]
[1743141226742,0.17096914,1923.1,1922.8,14.88618139]
[1743141227063,5.20032,1923.0,1922.8,14.5]
[1743141227378,5.37016081,1922.9,1922.5,29.998]
[1743141227571,5.37016081,1922.9,1922.5,32.9978]
[1743141227882,5.37016081,1922.9,1922.6,14.5]
[1743141228550,5.20086,1922.8,1922.6,14.5]
[1743141228750,2.56416497,1923.0,1922.6,14.5]
[1743141228751,5.20025,1923.0,1922.6,14.5]
[1743141228955,0.16969081,1922.9,1922.7,0.05200481]
[1743141229164,0.16969081,1922.9,1922.7,1.50720529]
[1743141229389,0.16969081,1922.9,1922.7,0.05200481]
[1743141229549,0.16969081,1922.9,1922.8,14.5]
[1743141229881,5.20016,1923.1,1922.8,14.5]
[1743141230081,0.16969081,1922.9,1922.8,14.5]
[1743141230284,12.15548497,1923.2,1922.8,14.5]
[1743141230586,17.35529497,1923.2,1922.8,14.5]
[1743141230786,0.16969081,1923.1,1922.8,14.5]
[1743141231148,0.16969081,1923.1,1922.8,21.67067]
[1743141231382,0.16969081,1923.1,1922.9,5.20046]
[1743141231581,0.16969081,1923.1,1922.8,21.67067]
[1743141231955,0.16969081,1923.1,1922.8,16.47008]
[1743141232161,5.36966081,1923.1,1922.8,14.5]
[1743141232362,0.16969081,1923.1,1922.8,14.5]
[1743141232558,0.16969081,1923.1,1922.8,19.70072]
[1743141232884,0.16969081,1923.1,1922.8,24.90125]
[1743141233187,0.16969081,1923.1,1922.8,25.28842314]
[1743141233391,0.16969081,1923.1,1922.8,22.61654545]
[1743141233590,2.56416497,1923.0,1922.8,14.5]
[1743141233774,7.76437497,1923.0,1922.6,5.20113]
[1743141233955,0.16803946,1922.9,1922.6,5.20113]
[1743141234283,0.16803946,1922.9,1922.6,24.95431592]
[1743141234497,0.16803946,1922.9,1922.7,5.20089]
[1743141234650,0.1155174,1923.3,1923.2,5.19966]
[1743141235757,0.27631411,1923.3,1923.2,6.31784803]
[1743141235952,0.27631411,1923.3,1923.2,6.26586]
[1743141236259,0.1155174,1923.3,1923.2,6.31784801]
[1743141236466,0.1155174,1923.3,1923.2,6.26586]
[1743141236675,0.1155174,1923.3,1923.2,7.412436]
[1743141237805,0.1155174,1923.3,1923.2,11.575756]
[1743141238169,0.1155174,1923.3,1923.2,7.412436]
[1743141239287,0.1155174,1923.3,1923.2,6.72903416]
[1743141239486,0.1155174,1923.3,1923.2,1.52937416]
[1743141239487,0.27871263,1923.3,1923.2,1.52937416]
[1743141239671,0.1155174,1923.3,1923.2,0.38279816]
[1743141239873,0.1155174,1923.3,1923.2,5.19966]
[1743141240288,0.27871263,1923.3,1923.2,10.281106]
[1743141240494,0.1155174,1923.3,1923.2,10.281106]
[1743141240805,0.1155174,1923.3,1923.2,13.1744231]
[1743141241306,0.1155174,1923.3,1923.2,8.0929771]
[1743141241511,0.1155174,1923.3,1923.2,19.55383132]
[1743141241708,0.1155174,1923.3,1923.2,28.48350152]
[1743141242019,0.05,1923.9,1923.8,6.27774]
[1743141242183,0.05,1923.9,1923.8,37.424338]
[1743141242782,0.05,1923.9,1923.8,66.96768876]
[1743141242995,0.05,1923.9,1923.8,52.50900576]
[1743141243398,0.05,1923.9,1923.8,43.77296576]
[1743141243798,0.05,1923.9,1923.8,32.61792576]
[1743141244117,0.05,1923.9,1923.8,29.999]
[1743141244495,5.41293651,1923.9,1923.8,29.999]
[1743141244696,8.96293651,1923.9,1923.8,29.999]
[1743141244895,9.80453651,1923.9,1923.8,29.999]
[1743141245920,0.8416,1923.4,1923.1,31.01170206]
[1743141246078,0.8416,1923.4,1923.1,33.72692721]
[1743141246282,0.16516651,1923.3,1923.1,33.72692721]
[1743141246500,6.04088,1923.4,1923.1,29.995]
[1743141246703,0.16873734,1923.3,1923.1,29.995]
[1743141246900,5.36827734,1923.3,1923.1,29.995]
[1743141247210,5.19966,1923.2,1923.1,29.995]
[1743141247743,6.03876,1923.2,1923.1,29.995]
[1743141247922,6.20749734,1923.2,1923.1,29.995]
[1743141248090,0.16873734,1923.2,1923.1,29.995]
[1743141248612,5.19925,1923.4,1923.1,29.995]
[1743141248816,0.16873734,1923.2,1923.1,29.995]
[1743141249018,8.19898,1923.5,1923.1,29.995]
[1743141249229,0.16873734,1923.2,1923.1,29.995]
[1743141249420,8.19898,1923.5,1923.1,29.995]
[1743141249597,0.16873734,1923.2,1923.1,29.995]
[1743141249792,13.39799,1923.5,1923.1,29.995]
[1743141250023,0.16873734,1923.4,1923.1,29.995]
[1743141250523,5.36786734,1923.4,1923.1,29.995]
[1743141250828,5.19943,1923.3,1923.1,29.995]
[1743141251010,5.36786734,1923.4,1923.1,29.995]
[1743141251213,5.19913,1923.4,1923.1,29.995]
[1743141251399,6.03787,1923.6,1923.2,0.05199448]
[1743141251400,0.16873734,1923.3,1923.2,0.05199448]
[1743141251628,0.16873734,1923.3,1923.1,32.9945]
[1743141251831,6.03779,1923.6,1923.2,0.05199026]
[1743141252066,0.8391,1923.6,1923.2,0.05199026]
[1743141252341,0.05,1923.9,1923.5,5.19883]
[1743141252705,0.05,1923.9,1923.3,1.031]
[1743141252706,5.24784,1923.9,1923.3,1.031]
[1743141252907,5.19818,1923.8,1923.4,0.0519828]
[1743141253109,10.44576,1923.9,1923.4,0.0519828]
[1743141253345,5.24784,1923.9,1923.4,5.87932408]
[1743141253911,0.05,1923.9,1923.4,5.82734128]
[1743141254143,3.05,1923.9,1923.4,11.02613128]
[1743141254334,0.05,1923.9,1923.6,5.19831]
[1743141254509,0.05,1923.9,1923.5,5.1988]
[1743141254510,5.24778,1923.9,1923.5,1.1057]
[1743141254711,0.05,1923.9,1923.5,1.1057]
[1743141254950,0.05,1923.9,1923.5,1.83898413]
[1743141255261,5.24798,1923.9,1923.5,1.83898413]
[1743141255410,5.24798,1923.9,1923.4,6.22714128]
[1743141255607,0.05,1923.9,1923.4,11.42614128]
[1743141255812,0.05,1923.9,1923.5,5.19871]
[1743141256154,0.05,1923.9,1923.6,0.0519786]
[1743141256354,0.05,1923.9,1923.6,5.2504986]
[1743141256571,0.05,1923.9,1923.7,0.52504986]
[1743141256885,0.05,1923.9,1923.5,5.19871]
[1743141257030,5.24783,1923.9,1923.4,6.22725128]
[1743141257229,0.05,1923.9,1923.5,5.25068942]
[1743141257433,0.05,1923.9,1923.4,6.22738128]
[1743141257770,0.05,1923.9,1923.5,5.25080942]
[1743141257927,0.05,1923.9,1923.6,0.05197939]
[1743141258375,0.05,1923.9,1923.5,6.34664907]
[1743141258530,0.05,1923.9,1923.6,0.05197893]
[1743141258730,5.24781,1923.9,1923.5,1.14781907]
[1743141258933,0.05,1923.9,1923.5,5.19883]
[1743141259586,0.05,1923.9,1923.6,29.995]
[1743141261287,0.05,1923.9,1923.6,44.495]
[1743141261989,0.05,1923.9,1923.6,29.995]
[1743141262195,0.05,1923.9,1923.7,5.25028836]
[1743141262489,0.05,1923.9,1923.8,15.02502884]
[1743141264299,0.05,1923.9,1923.8,20.22306884]
[1743141265983,0.05,1923.9,1923.8,15.02502884]
[1743141266396,0.05,1923.9,1923.6,29.995]
[1743141266818,0.16437395,1923.8,1923.7,0.05197555]
[1743141267019,5.24783,1923.9,1923.6,44.495]
[1743141267221,1.00347395,1923.8,1923.6,29.995]
[1743141268693,6.20152395,1923.8,1923.6,29.995]
[1743141269619,5.19831,1923.7,1923.6,29.995]
[1743141269918,5.36092513,1923.7,1923.6,29.995]
[1743141270086,0.16261513,1923.7,1923.6,29.995]
[1743141270727,5.36092513,1923.7,1923.6,29.995]
[1743141271514,0.16261513,1923.7,1923.6,29.995]
[1743141273595,0.05,1923.9,1923.6,29.995]
[1743141273790,0.16176221,1923.8,1923.6,29.995]
[1743141273990,0.05,1923.9,1923.7,0.05198017]
[1743141274219,0.16176221,1923.7,1923.6,10.39676]
[1743141274379,0.05,1923.9,1923.6,5.19836]
[1743141274583,0.16176221,1923.8,1923.7,0.05197584]
[1743141274819,0.05,1923.9,1923.7,0.05197584]
[1743141275017,0.16176221,1923.8,1923.7,1.09685642]
[1743141275194,0.05,1923.9,1923.7,1.09685642]
[1743141275380,0.16176221,1923.8,1923.7,1.09685642]
[1743141275577,0.05,1923.9,1923.7,1.04488058]
[1743141275887,0.05,1923.9,1923.5,6.31603]
[1743141275888,0.16176221,1923.8,1923.5,6.31603]
[1743141276219,5.2478,1923.9,1923.5,6.31603]
[1743141276417,0.16352108,1923.8,1923.6,0.05197691]
[1743141276716,0.05,1923.9,1923.8,6.28474]
[1743141276920,0.05,1923.9,1923.8,29.28223255]
[1743141277095,0.05,1923.9,1923.8,32.28223255]
[1743141277897,0.05,1923.9,1923.8,33.30519531]
[1743141278586,0.8392,1925.0,1924.7,5.19538]
[1743141278818,0.1155174,1925.2,1924.9,5.1949]
[1743141279033,0.8392,1924.8,1923.9,6.29592]
[1743141279213,0.8392,1924.8,1923.8,5.58518155]
[1743141279214,5.19645,1924.4,1923.8,30.377063]
[1743141279412,3.0,1924.4,1923.9,0.05197066]
[1743141279725,3.0,1924.4,1923.9,5.24972066]
[1743141279941,0.8392,1924.5,1923.9,3.71774718]
[1743141280230,0.8392,1924.5,1924.1,5.19712]
[1743141280590,0.8392,1924.5,1924.0,5.19727]
[1743141280792,0.8392,1924.5,1923.9,8.86348652]
[1743141281089,0.8392,1924.5,1924.1,5.19721]
[1743141281309,0.8392,1924.5,1924.2,0.05196386]
[1743141281594,0.8392,1924.5,1924.1,5.19721]
[1743141281800,0.154278,1924.4,1924.1,5.19721]
[1743141282124,0.154278,1924.4,1924.2,0.05196388]
[1743141282688,0.154278,1924.4,1923.9,5.19765]
[1743141282921,0.154278,1924.4,1924.0,5.19738]
[1743141283493,0.154278,1924.4,1924.1,0.05196391]
[1743141283727,0.154278,1924.4,1924.1,5.24906391]
[1743141284021,0.154278,1924.4,1924.1,10.44610391]
[1743141284209,0.154278,1924.4,1924.1,5.19704]
[1743141284523,0.154278,1924.4,1924.0,5.19748]
[1743141284710,0.154278,1924.4,1923.9,8.85808945]
[1743141285031,0.154278,1924.4,1924.0,5.1975]
[1743141285525,0.154278,1924.4,1924.2,5.19681]
[1743141285935,0.8392,1924.7,1924.1,5.71692]
[1743141286105,0.154278,1924.3,1924.1,5.71692]
[1743141286306,0.8392,1924.7,1924.1,5.71692]
[1743141286500,3.8392,1924.7,1924.0,11.49681]
[1743141286706,0.154278,1924.6,1924.1,5.19712]
[1743141286894,0.154278,1924.6,1924.2,5.24877236]
[1743141287306,0.8392,1924.7,1924.3,5.19669]
[1743141287599,0.8392,1924.7,1924.2,5.19681]
[1743141287797,0.154278,1924.6,1924.3,5.19658]
[1743141287998,0.8392,1924.7,1924.3,5.19658]
[1743141288321,0.154278,1924.6,1924.3,5.19658]
[1743141288632,0.8392,1924.7,1924.3,10.44501236]
[1743141288832,0.154278,1924.6,1924.3,6.86458664]
[1743141289138,0.8392,1924.7,1924.3,5.19647]
[1743141289306,0.154278,1924.5,1924.3,5.24842994]
[1743141289506,0.8392,1924.7,1924.3,5.24842994]
[1743141289717,0.15854535,1924.4,1924.3,5.24842994]
[1743141289919,0.8392,1924.7,1924.4,5.19642]
[1743141290106,0.55,1924.9,1924.4,5.19642]
[1743141290427,1.3892,1924.9,1924.4,5.19642]
[1743141290730,1.3892,1924.9,1924.3,5.58660617]
[1743141291027,3.94890471,1924.9,1924.4,5.19638]
[1743141291227,3.39890471,1924.9,1924.5,5.19598]
[1743141291425,0.8392,1924.9,1924.5,5.19598]
[1743141291591,0.8392,1924.9,1924.4,6.27975461]
[1743141291798,3.39890471,1924.9,1924.4,6.27972461]
[1743141292098,3.39890471,1924.9,1924.4,11.47594461]
[1743141292295,3.39890471,1924.9,1924.5,5.19609]
[1743141292624,0.8392,1924.9,1924.5,5.19597]
[1743141293194,3.0,1925.0,1924.6,5.19568]
[1743141293390,3.39890471,1925.1,1924.6,5.19568]
[1743141293811,0.8392,1925.1,1924.7,5.19558]
[1743141294012,0.8392,1925.1,1924.6,5.19568]
[1743141294013,0.8392,1925.1,1924.6,35.17668]
[1743141294217,0.8392,1925.1,1924.6,40.37235]
[1743141294540,0.8392,1925.1,1924.6,44.409585]
[1743141294940,0.8392,1925.1,1924.6,39.213905]
[1743141295235,0.8392,1925.1,1924.7,14.5]
[1743141296227,0.8392,1925.1,1924.7,19.69561]
[1743141296415,0.8392,1925.1,1924.8,5.24719164]
[1743141296631,0.8392,1925.1,1924.8,6.23952016]
[1743141296812,0.14670003,1925.0,1924.8,1.04428016]
[1743141297015,0.14670003,1925.0,1924.7,10.39097]
[1743141297318,0.14670003,1925.0,1924.8,5.19533]
[1743141297547,0.14670003,1925.0,1924.7,10.39089]
[1743141297711,0.14670003,1925.0,1924.8,5.19531]
[1743141297919,0.14670003,1925.0,1924.9,14.5]
[1743141298113,2.70640474,1925.0,1924.6,29.981]
[1743141298428,2.55970471,1924.8,1924.6,29.981]
[1743141298939,0.14670003,1924.7,1924.6,29.981]
[1743141299599,3.39890471,1924.9,1924.6,29.981]
[1743141299807,0.14670003,1924.8,1924.6,38.17472]
[1743141300013,8.19455,1925.1,1924.6,38.17472]
[1743141300345,0.8392,1924.9,1924.6,29.981]
[1743141300915,0.14670003,1924.8,1924.6,29.981]
[1743141301338,0.8392,1924.9,1924.6,35.17679]
[1743141301547,0.14670003,1924.7,1924.6,35.17679]
[1743141301744,0.8392,1924.9,1924.6,39.21406]
[1743141301947,0.14670003,1924.7,1924.6,39.21406]
[1743141302248,2.55970471,1925.0,1924.6,34.01827]
[1743141302451,3.39890471,1924.8,1924.6,29.981]
[1743141302606,5.74561,1924.7,1924.3,0.39013617]
[1743141302807,3.54560474,1924.6,1924.3,5.19667]
[1743141303012,0.98590003,1924.6,1924.2,5.19691]
[1743141303234,0.98590003,1924.6,1924.3,15.019691]
[1743141304443,6.18178003,1924.6,1924.3,15.019691]
[1743141304625,6.18178003,1924.6,1924.3,14.5]
[1743141304626,8.74148474,1924.6,1924.3,14.5]
[1743141305156,8.74148474,1924.6,1924.3,14.89262682]
[1743141305846,0.14670003,1924.6,1924.0,1.1234]
[1743141306048,6.0343,1924.5,1924.0,6.32087]
[1743141306351,0.14509814,1924.4,1924.0,6.32087]
[1743141306522,0.14509814,1924.4,1924.0,6.37283661]
[1743141306714,5.34173814,1924.4,1924.0,1.1234]
[1743141307050,0.14509814,1924.4,1924.0,6.32088]
[1743141307256,0.14509814,1924.4,1924.1,0.632088]
[1743141307956,7.90128285,1924.4,1924.0,0.38234911]
[1743141308119,5.19681,1924.3,1923.9,29.978]
[1743141308454,0.14461747,1924.2,1923.9,29.978]
[1743141308759,6.17949747,1924.2,1923.9,29.978]
[1743141308930,7.75720471,1924.0,1923.9,29.978]
[1743141309263,7.90155512,1924.0,1923.9,29.978]
[1743141309556,8.73945512,1924.0,1923.9,29.978]
[1743141309758,8.73945512,1924.0,1923.3,1.03791999]
[1743141309913,2.55970471,1923.5,1923.2,29.981]
[1743141310115,2.55970471,1923.5,1923.4,14.5]
[1743141310311,5.19873,1923.6,1923.4,14.5]
[1743141310564,8.59645471,1923.5,1923.4,14.5]
[1743141311669,5.19939,1923.3,1923.2,29.981]
[1743141311856,5.33337616,1923.3,1923.2,29.981]
[1743141312166,5.33337616,1923.3,1923.2,44.481]
[1743141313763,5.33337616,1923.3,1923.2,29.981]
[1743141314356,0.13398616,1923.3,1923.2,29.981]
[1743141314560,0.8379,1923.5,1923.2,32.9791]
[1743141314877,0.13259619,1923.4,1923.2,32.9791]
[1743141315389,0.13259619,1923.4,1923.3,14.5]
[1743141316435,10.39798,1923.5,1923.3,14.5]
[1743141316670,5.33171619,1923.4,1923.3,14.5]
[1743141316871,6.16961619,1923.4,1923.3,14.5]
[1743141317595,0.97049619,1923.4,1923.3,14.5]
[1743141317800,0.13259619,1923.4,1923.3,14.5]
[1743141319876,5.33171619,1923.4,1923.3,14.5]
[1743141320073,5.19939,1923.3,1923.2,29.981]
[1743141320291,5.33241391,1923.3,1923.2,29.981]
[1743141320807,5.33241391,1923.3,1923.2,44.481]
[1743141323217,0.13302391,1923.3,1923.2,44.481]
[1743141323391,5.19788,1923.9,1923.2,50.0572]
[1743141323714,5.19843,1923.7,1923.2,40.75684]
[1743141323918,5.19843,1923.7,1923.2,45.95619]
[1743141324218,0.11996239,1923.6,1923.3,19.75133871]
[1743141324514,5.19847,1923.7,1923.4,1.97513387]
[1743141324813,5.19847,1923.7,1923.2,35.5572]
[1743141324814,0.11996239,1923.5,1923.2,35.5572]
[1743141325119,0.12194247,1923.4,1923.2,35.5572]
[1743141325473,5.19939,1923.3,1923.2,29.981]
[1743141325789,5.32133247,1923.3,1923.2,29.981]
[1743141327312,0.12194247,1923.3,1923.2,29.981]
[1743141327716,5.19915,1923.4,1923.2,29.981]
[1743141328001,0.11996239,1923.3,1923.2,29.981]
[1743141328335,5.19915,1923.4,1923.2,29.981]
[1743141328539,0.11985533,1923.3,1923.2,29.981]
[1743141328905,5.19915,1923.4,1923.2,29.981]
[1743141329243,0.11985533,1923.3,1923.2,29.981]
[1743141329443,5.19915,1923.4,1923.2,29.981]
[1743141329642,0.11985533,1923.3,1923.2,29.981]
[1743141329806,10.39841,1923.4,1923.2,29.981]
[1743141330006,5.31924533,1923.3,1923.2,29.981]
[1743141330553,5.31924533,1923.3,1923.0,0.38685328]
[1743141330748,0.11985533,1923.3,1923.0,8.87058633]
[1743141331109,10.39846,1923.4,1923.0,8.87058633]
[1743141331407,5.19915,1923.4,1923.0,8.92258236]
[1743141331633,0.11985533,1923.3,1923.1,5.19993]
[1743141331847,5.19914,1923.4,1923.1,1.41225124]
[1743141332149,0.11985533,1923.3,1923.1,1.41225124]
[1743141332518,5.19914,1923.4,1923.1,1.41225124]
[1743141332717,0.11985533,1923.2,1923.1,1.41225124]
[1743141333216,0.11985533,1923.2,1922.9,31.1167]
[1743141333217,5.31961533,1923.2,1922.9,31.1167]
[1743141333535,0.11985533,1923.2,1922.9,36.31697]
[1743141333943,5.19969,1923.2,1922.9,31.1167]
[1743141334119,0.12092576,1923.1,1922.9,31.1167]
[1743141334619,0.12092576,1923.1,1922.9,33.84188932]
[1743141335455,0.12092576,1923.1,1922.9,39.04231932]
[1743141335644,10.39896,1923.3,1922.9,34.23655625]
[1743141335845,0.12092576,1923.2,1922.9,34.23655625]
[1743141336617,5.32071576,1923.2,1922.9,34.23655625]
[1743141336817,5.32071576,1923.2,1922.9,33.11885625]
[1743141337018,5.32071576,1923.2,1922.9,30.39366693]
[1743141337237,5.19996,1923.1,1922.9,30.39366693]
[1743141337454,5.19996,1923.1,1922.9,29.999]
[1743141337653,0.12092576,1923.0,1922.9,29.999]
[1743141338041,5.32112576,1923.0,1922.9,29.999]
[1743141338241,9.26524516,1923.0,1922.9,29.999]
[1743141338754,9.26524516,1923.0,1922.2,1.4504344]
[1743141338755,5.20199,1922.4,1922.2,1.4504344]
[1743141338949,5.20199,1922.4,1922.1,30.051]
[1743141338950,5.20223,1922.3,1922.1,30.051]
[1743141339115,5.32262043,1922.3,1922.1,33.3180663]
[1743141339316,0.12039043,1922.3,1922.1,33.3180663]
[1743141339752,5.20237,1922.2,1922.1,33.3180663]
[1743141339951,5.32259043,1922.3,1922.1,30.051]
[1743141339952,7.88560983,1922.3,1922.1,30.051]
[1743141340154,5.31735247,1922.2,1922.1,30.051]
[1743141341157,0.11498247,1922.2,1922.1,30.051]
[1743141342086,5.31735247,1922.2,1922.1,30.051]
[1743141342390,0.11498247,1922.2,1922.1,32.98003232]
[1743141342542,0.11498247,1922.2,1922.1,39.22997232]
[1743141342749,8.2015,1922.6,1922.1,39.22997232]
[1743141342951,0.11412524,1922.2,1922.1,39.22997232]
[1743141343145,13.40292,1922.6,1922.1,39.22997232]
[1743141343350,0.11412524,1922.2,1922.1,34.02733232]
[1743141343581,10.40343,1922.5,1922.1,34.02733232]
[1743141343582,5.20183,1922.4,1922.1,34.02733232]
[1743141343750,0.11412524,1922.2,1922.1,34.02733232]
[1743141343950,5.20183,1922.4,1922.1,34.02733232]
[1743141344146,0.11412524,1922.2,1922.1,39.22997232]
[1743141344351,5.20161,1922.5,1922.1,39.22997232]
[1743141344683,5.20226,1922.3,1922.1,34.02733232]
[1743141345084,5.20209,1922.4,1922.1,34.02733232]
[1743141345252,0.11412524,1922.2,1922.1,34.02733232]
[1743141345574,5.20209,1922.4,1922.1,34.02733232]
[1743141345776,0.11412524,1922.2,1922.1,34.02733232]
[1743141345984,5.20209,1922.4,1922.1,34.02733232]
[1743141346158,0.11412524,1922.2,1922.1,34.02733232]
[1743141346349,5.20209,1922.4,1922.1,34.02733232]
[1743141346901,0.11412524,1922.3,1922.1,34.02733232]
[1743141348295,0.11412524,1922.3,1922.2,3.40273323]
[1743141349794,0.11412524,1922.3,1922.1,30.051]
[1743141350087,5.31641524,1922.3,1922.1,30.051]
[1743141350246,10.51874524,1922.3,1922.1,30.051]
[1743141350450,5.31634524,1922.3,1922.1,30.051]
[1743141353058,0.11412524,1922.3,1922.1,35.25362]
[1743141353258,5.20161,1922.5,1922.2,4.632662]
[1743141353458,0.8311,1922.6,1922.2,1.1073]
[1743141353762,5.20122,1922.7,1922.2,6.30955]
[1743141354154,5.20141,1922.6,1922.2,6.30955]
[1743141354358,15.1551146,1922.8,1922.4,5.20181]
[1743141354359,17.2429552,1922.8,1922.4,5.20181]
[1743141354576,5.20103,1922.7,1922.4,1.30189197]
[1743141355190,5.20103,1922.7,1922.4,1.68886063]
[1743141356159,5.20103,1922.7,1922.4,0.38696866]
[1743141356384,5.20103,1922.7,1922.3,5.25409383]
[1743141356693,0.10973375,1922.6,1922.3,5.25409383]
[1743141356893,5.20103,1922.7,1922.3,5.25409383]
[1743141357073,0.10973375,1922.6,1922.3,5.20208]
[1743141357387,5.20103,1922.7,1922.4,0.520208]
[1743141357591,0.10973375,1922.5,1922.4,0.520208]
[1743141357793,5.20103,1922.7,1922.4,0.520208]
[1743141357994,0.11096599,1922.5,1922.4,0.520208]
[1743141358164,5.20103,1922.7,1922.4,0.520208]
[1743141358567,0.11101956,1922.6,1922.4,0.520208]
[1743141359066,0.11101956,1922.5,1922.4,0.520208]
[1743141359381,5.20103,1922.7,1922.4,0.520208]
[1743141359562,0.11101956,1922.5,1922.4,0.520208]
[1743141359768,5.20103,1922.7,1922.4,0.520208]
[1743141359967,0.11101956,1922.5,1922.4,0.91579228]
[1743141360167,5.20103,1922.7,1922.4,0.91579228]
[1743141360367,0.11101956,1922.5,1922.4,0.91579228]
[1743141361004,5.20103,1922.7,1922.4,0.91579228]
[1743141361203,0.11101956,1922.6,1922.4,0.91579228]
[1743141361403,5.20103,1922.7,1922.4,0.91579228]
[1743141361598,0.11101956,1922.6,1922.4,0.91579228]
[1743141361805,5.20103,1922.7,1922.4,0.91579228]
[1743141362004,0.11101956,1922.6,1922.4,0.91579228]
[1743141362292,5.20103,1922.7,1922.4,0.91579228]
[1743141362487,0.11101956,1922.6,1922.4,0.91579228]
[1743141362817,0.11171606,1922.5,1922.4,0.91579228]
[1743141362985,5.20103,1922.7,1922.4,0.91579228]
[1743141363188,0.11171606,1922.6,1922.4,0.91579228]
[1743141363387,5.20103,1922.7,1922.4,0.91579228]
[1743141363584,0.11171606,1922.6,1922.4,0.91579228]
[1743141363826,5.20103,1922.7,1922.4,0.91579228]
[1743141364027,0.11171606,1922.6,1922.4,6.11761228]
[1743141364193,5.20081,1922.8,1922.5,0.61176123]
[1743141364395,9.469,1923.1,1922.7,5.20101]
[1743141364396,8.19999,1923.1,1922.7,5.20101]
[1743141364698,6.03077,1923.2,1922.8,6.23042]
[1743141364901,5.1994,1923.3,1922.8,6.23042]
[1743141365240,5.19979,1923.2,1922.8,7.62986494]
[1743141366293,5.1994,1923.3,1922.8,12.83039494]
[1743141366494,10.39905,1923.3,1922.8,7.62977494]
[1743141366695,10.39905,1923.3,1922.8,12.83041494]
[1743141366891,6.03023,1923.4,1923.0,5.20004]
[1743141367213,10.39701,1923.7,1923.2,5.19949]
[1743141367593,5.19996,1923.1,1922.7,1.0671]